bitfinex/quotes_BTCUSD_20260215
["timestamp","ask_amount","ask_price","bid_price","bid_amount"]
[1771135901792,0.07119316,70232.0,70226.0,0.07119826]
[1771135901996,0.07119316,70232.0,70227.0,0.07119763]
[1771135902637,0.07119169,70233.0,70227.0,0.07119763]
[1771135903005,0.338061,70235.0,70221.0,0.02384179]
[1771135903238,0.07119552,70230.0,70223.0,0.07120094]
[1771135903438,0.07119552,70230.0,70224.0,0.07120046]
[1771135903638,0.07119261,70232.0,70221.0,0.02384179]
[1771135903844,0.07119261,70232.0,70226.0,0.07119853]
[1771135904017,0.07119249,70233.0,70227.0,0.071197]
[1771135906550,0.0004,70232.0,70227.0,0.071197]
[1771135909581,0.0004,70232.0,70227.0,0.068297]
[1771135910355,0.00012532,70232.0,70227.0,0.068297]
[1771135910514,0.07119245,70234.0,70228.0,0.07119634]
[1771135910695,0.07119164,70233.0,70228.0,0.07119634]
[1771135910894,0.338061,70235.0,70221.0,0.11195319]
[1771135911093,0.338061,70235.0,70232.0,0.07119226]
[1771135911298,0.338061,70235.0,70231.0,0.07119263]
[1771135911814,0.338061,70235.0,70229.0,0.07119501]
[1771135912134,0.40933137,70235.0,70229.0,0.07119501]
[1771135912698,0.40933137,70235.0,70228.0,0.07119633]
[1771135912699,0.07119061,70234.0,70228.0,0.07119633]
[1771135913815,0.07119061,70234.0,70229.0,0.07119557]
[1771135915212,0.07119061,70234.0,70228.0,0.07119621]
[1771135915818,0.07119061,70234.0,70224.0,0.28236696]
[1771135916032,0.07119061,70234.0,70228.0,0.07119588]
[1771135916239,0.07159061,70234.0,70228.0,0.07119588]
[1771135918640,0.07119165,70233.0,70228.0,0.07119588]
[1771135919064,0.07159105,70234.0,70228.0,0.07119588]
[1771135920295,0.07119182,70233.0,70227.0,0.0713973]
[1771135920749,0.07142614,70234.0,70228.0,0.07119648]
[1771135920946,0.00023509,70234.0,70228.0,0.07119489]
[1771135921149,0.07142571,70234.0,70228.0,0.07119489]
[1771135921560,0.07119172,70233.0,70227.0,0.07139582]
[1771135922812,0.07119172,70233.0,70228.0,0.07119653]
[1771135923110,0.07119172,70233.0,70227.0,0.07139706]
[1771135923726,0.07119256,70233.0,70227.0,0.0002]
[1771135923926,0.07119256,70233.0,70227.0,0.07139763]
[1771135924335,0.07119256,70233.0,70228.0,0.07119665]
[1771135924496,0.07119365,70231.0,70227.0,0.0002]
[1771135925091,0.02439285,70234.0,70227.0,0.0002]
[1771135925291,0.07119595,70229.0,70227.0,0.0002]
[1771135925496,0.07119496,70230.0,70227.0,0.0002]
[1771135925698,0.07040862,70230.0,70227.0,0.0002]
[1771135925890,0.03644507,70230.0,70227.0,0.0002]
[1771135926200,0.03470078,70230.0,70227.0,0.0002]
[1771135927490,0.09535167,70231.0,70227.0,0.0002]
[1771135927918,0.07119391,70231.0,70227.0,0.0002]
[1771135928532,0.07119471,70230.0,70227.0,0.0002]
[1771135929498,0.07119622,70229.0,70223.0,0.07119992]
[1771135929698,0.07119622,70229.0,70221.0,0.07140316]
[1771135929957,0.07119436,70231.0,70225.0,0.07119882]
[1771135930449,0.07119436,70231.0,70224.0,0.07119898]
[1771135930811,0.07119436,70231.0,70225.0,0.07119903]
[1771135933735,0.03878288,70231.0,70225.0,0.07139903]
[1771135935296,0.03878288,70231.0,70226.0,0.07119858]
[1771135935874,0.03878288,70231.0,70225.0,0.07139926]
[1771135936285,0.07159307,70232.0,70226.0,0.07119838]
[1771135937442,0.0004,70232.0,70225.0,0.28499608]
[1771135937648,0.3410322,70237.0,70233.0,0.0711914]
[1771135938191,0.3410322,70237.0,70232.0,0.07119229]
[1771135939650,0.0001522,70237.0,70233.0,0.07119131]
[1771135942689,0.0001522,70237.0,70232.0,0.07119229]
[1771135943093,0.0001522,70237.0,70233.0,0.07119153]
[1771135944339,0.0001522,70237.0,70232.0,0.07119229]
[1771135945283,0.07158867,70236.0,70230.0,0.0711943]
[1771135945508,0.0004,70236.0,70231.0,0.07119344]
[1771135946875,0.0004,70236.0,70227.0,0.0002]
[1771135947166,0.07119122,70234.0,70228.0,0.07119666]
[1771135947543,0.07119204,70233.0,70227.0,0.07147785]
[1771135948350,0.07119122,70234.0,70228.0,0.07119638]
[1771135950312,0.07119165,70233.0,70227.0,0.07147747]
[1771135950454,0.07119084,70234.0,70228.0,0.07119648]
[1771135951522,0.07119219,70233.0,70227.0,0.00028018]
[1771135951664,0.0004,70234.0,70228.0,0.0711965]
[1771135952295,0.0715906,70234.0,70228.0,0.0711965]
[1771135953199,0.0715906,70234.0,70227.0,0.071476]
[1771135953200,0.02415477,70234.0,70227.0,0.00028018]
[1771135953726,0.0711926,70233.0,70227.0,0.00028018]
[1771135954097,0.02375477,70231.0,70227.0,0.00028018]
[1771135955098,0.02375477,70231.0,70227.0,0.00041288]
[1771135955753,0.02375477,70231.0,70227.0,0.07161055]
[1771135955909,0.02375477,70231.0,70227.0,0.00041288]
[1771135956301,0.07119266,70232.0,70227.0,0.00041288]
[1771135956952,0.0711926,70233.0,70227.0,0.07161047]
[1771135958201,0.28477212,70232.0,70225.0,0.0002]
[1771135958405,0.02375477,70231.0,70225.0,0.0002]
[1771135958600,0.09495006,70230.0,70225.0,0.0002]
[1771135959460,0.09495006,70230.0,70225.0,0.07139955]
[1771135960176,0.02375477,70230.0,70225.0,0.07139955]
[1771135960474,0.09494952,70230.0,70225.0,0.07139955]
[1771135960802,0.02375477,70230.0,70225.0,0.07139955]
[1771135961544,0.09494973,70230.0,70225.0,0.0002]
[1771135962321,0.00011728,70232.0,70229.0,0.07119473]
[1771135962591,0.00011728,70232.0,70228.0,0.07119643]
[1771135962797,0.00011728,70232.0,70227.0,0.07119682]
[1771135963158,0.0249158,70232.0,70225.0,0.0002]
[1771135963375,0.07119635,70229.0,70225.0,0.0002]
[1771135963539,0.09599487,70229.0,70225.0,0.0002]
[1771135967733,0.07119635,70229.0,70225.0,0.0002]
[1771135967932,0.02479852,70229.0,70222.0,0.07120258]
[1771135968134,0.07119675,70228.0,70221.0,0.0002]
[1771135968331,0.02479852,70227.0,70221.0,0.0002]
[1771135968533,0.02479852,70227.0,70222.0,0.07120258]
[1771135968773,0.02479852,70227.0,70223.0,0.07120166]
[1771135968972,0.02479852,70227.0,70223.0,0.07120115]
[1771135969633,0.41207651,70230.0,70218.0,0.08468443]
[1771135969634,0.57946086,70230.0,70218.0,0.08468443]
[1771135969773,0.07120207,70223.0,70218.0,0.08468443]
[1771135972442,0.07131081,70232.0,70225.0,0.07119882]
[1771135972688,0.00011728,70232.0,70226.0,0.07119793]
[1771135973329,0.00011728,70232.0,70227.0,0.07119758]
[1771135975302,0.07131,70232.0,70226.0,0.07119838]
[1771135975724,0.07131,70232.0,70227.0,0.0002]
[1771135976825,0.07119382,70231.0,70227.0,0.0002]
[1771135979986,0.07119471,70230.0,70227.0,0.0002]
[1771135980395,0.07131174,70232.0,70227.0,0.0002]
[1771135980598,0.07119577,70229.0,70227.0,0.0002]
[1771135981326,0.07119667,70228.0,70227.0,0.0002]
[1771135982711,0.09639519,70228.0,70227.0,0.0002]
[1771135982992,0.07119928,70226.0,70219.0,0.0002]
[1771135983138,0.03878668,70225.0,70219.0,0.07140517]
[1771135984886,0.07119905,70226.0,70220.0,0.07120458]
[1771135985283,0.07119979,70225.0,70220.0,0.07120458]
[1771135985482,0.07119979,70225.0,70219.0,0.07140517]
[1771135986252,0.07119916,70226.0,70220.0,0.07120458]
[1771135986834,0.07119993,70225.0,70219.0,0.07140543]
[1771135987963,0.07119993,70225.0,70220.0,0.07120472]
[1771135988183,0.0711991,70226.0,70220.0,0.07120472]
[1771135988651,0.07119993,70225.0,70220.0,0.07120472]
[1771135989005,0.07119913,70226.0,70220.0,0.07120472]
[1771135989856,0.07119977,70225.0,70219.0,0.07140537]
[1771135990921,0.071199,70226.0,70220.0,0.07120461]
[1771135991126,0.07119983,70225.0,70219.0,0.07140544]
[1771135991456,0.07119983,70225.0,70220.0,0.0002]
[1771135992266,0.07120134,70224.0,70220.0,0.0002]
[1771135993516,0.07120072,70224.0,70220.0,0.0002]
[1771135994131,0.0004,70226.0,70222.0,0.07120219]
[1771135994478,0.0004,70226.0,70220.0,0.0002]
[1771135994680,0.0004,70226.0,70222.0,0.07120182]
[1771135996908,0.0004,70226.0,70221.0,0.07120354]
[1771136001553,0.0004,70226.0,70220.0,0.07140432]
[1771136001761,0.07159929,70226.0,70220.0,0.07140432]
[1771136001966,0.07119981,70225.0,70220.0,0.0002]
[1771136002290,0.07120094,70224.0,70220.0,0.0002]
[1771136002857,0.07120102,70224.0,70220.0,0.0002]
[1771136003234,0.07120005,70225.0,70220.0,0.0002]
[1771136004013,0.07119971,70225.0,70220.0,0.0002]
[1771136004210,0.02265568,70224.0,70220.0,0.0002]
[1771136004707,0.07120012,70225.0,70220.0,0.0002]
[1771136004909,0.07120012,70225.0,70217.0,0.07140771]
[1771136005157,0.07120012,70225.0,70218.0,0.07120681]
[1771136005296,0.07120012,70225.0,70219.0,0.07120493]
[1771136006072,0.0004,70226.0,70216.0,0.0001255]
[1771136006258,0.0004,70226.0,70212.0,0.02406766]
[1771136006259,0.07121086,70214.0,70212.0,0.0002]
[1771136006429,0.23858086,70223.0,70210.0,0.00012]
[1771136006430,0.02265568,70222.0,70210.0,0.00012]
[1771136006758,0.00012,70220.0,70200.0,3.67005569]
[1771136006980,0.23858086,70216.0,70200.0,3.58949026]
[1771136007182,0.07122024,70205.0,70200.0,3.58939661]
[1771136007501,0.07121967,70206.0,70200.0,3.58939661]
[1771136007660,0.07122187,70204.0,70200.0,3.58939661]
[1771136008044,0.07122021,70205.0,70200.0,3.58939661]
[1771136008373,0.00012,70210.0,70153.0,0.2850504]
[1771136008374,0.07122701,70199.0,70191.0,0.06781609]
[1771136008572,0.07122701,70200.0,70191.0,0.06790248]
[1771136008948,0.07122649,70199.0,70191.0,0.06790248]
[1771136009145,0.07122701,70200.0,70191.0,0.06790248]
[1771136009361,0.07122736,70198.0,70192.0,0.0002]
[1771136009558,0.07122701,70200.0,70192.0,0.0002]
[1771136009768,0.09387792,70203.0,70193.0,0.07123211]
[1771136010032,0.07122304,70202.0,70192.0,0.07143263]
[1771136010199,0.07122304,70202.0,70192.0,0.0002]
[1771136010376,0.07122405,70201.0,70193.0,0.07123121]
[1771136010581,0.07122571,70200.0,70192.0,0.07143121]
[1771136010793,0.07122405,70201.0,70192.0,0.07143121]
[1771136011027,0.07122507,70200.0,70192.0,0.07143121]
[1771136011232,0.07122507,70200.0,70193.0,0.07123195]
[1771136011431,0.07122637,70199.0,70192.0,0.0002]
[1771136011709,0.0712272,70198.0,70192.0,0.0002]
[1771136011880,0.07122811,70197.0,70192.0,0.0002]
[1771136012829,0.07122742,70198.0,70192.0,0.0002]
[1771136013083,0.07122826,70197.0,70192.0,0.0002]
[1771136013288,0.07122741,70198.0,70192.0,0.0002]
[1771136013481,0.07122715,70198.0,70192.0,0.0002]
[1771136013682,0.06832715,70198.0,70192.0,0.0002]
[1771136014498,0.07122613,70199.0,70192.0,0.07143284]
[1771136015608,0.07122716,70198.0,70192.0,0.07143284]
[1771136015802,0.07113342,70198.0,70192.0,0.0002]
[1771136016015,0.07122613,70199.0,70192.0,0.07143276]
[1771136016452,0.071227,70200.0,70192.0,0.07143286]
[1771136016877,0.0001632,70208.0,70197.0,0.07122745]
[1771136017032,0.07122092,70206.0,70197.0,0.07122724]
[1771136017233,0.07121796,70207.0,70195.0,0.02386766]
[1771136017458,0.07122482,70201.0,70194.0,0.07123057]
[1771136017618,0.07122482,70201.0,70193.0,0.07123016]
[1771136017824,0.07122322,70202.0,70195.0,0.07123003]
[1771136018044,0.07122322,70202.0,70193.0,0.04711195]
[1771136018262,0.07122322,70202.0,70195.0,0.07122932]
[1771136018619,0.07122322,70202.0,70196.0,0.00142458]
[1771136018822,0.07122411,70201.0,70194.0,0.07123086]
[1771136019879,0.07122411,70201.0,70195.0,0.34092]
[1771136020224,0.0712254,70200.0,70195.0,0.34092]
[1771136020530,0.07122411,70201.0,70195.0,0.34092]
[1771136021206,0.0712234,70202.0,70195.0,0.41214983]
[1771136022206,0.0712234,70202.0,70196.0,0.07122909]
[1771136023681,0.07138081,70208.0,70201.0,0.07122324]
[1771136023833,0.0001632,70208.0,70203.0,0.07122123]
[1771136024619,0.0001632,70208.0,70202.0,0.07122123]
[1771136024822,0.0001632,70208.0,70204.0,0.07122024]
[1771136025009,0.0001632,70208.0,70205.0,0.34092]
[1771136026822,0.0004,70209.0,70206.0,0.07121845]
[1771136027021,0.0004,70209.0,70205.0,0.41213985]
[1771136027428,0.0004,70209.0,70206.0,0.07121893]
[1771136027623,0.0004,70216.0,70206.0,0.10366034]
[1771136027866,0.0004,70216.0,70209.0,0.07121495]
[1771136028085,0.0004,70216.0,70211.0,0.07121376]
[1771136028288,0.0004,70216.0,70211.0,0.09427381]
[1771136028448,0.07160889,70216.0,70211.0,0.02306005]
[1771136028651,0.0004,70216.0,70211.0,0.17487399]
[1771136028856,0.0004,70216.0,70212.0,0.02306005]
[1771136029496,0.07160885,70216.0,70212.0,0.02306005]
[1771136029673,0.07160885,70216.0,70211.0,0.10366034]
[1771136030074,0.07160885,70216.0,70210.0,0.16241464]
[1771136032505,0.0005304,70215.0,70210.0,0.16241464]
[1771136034269,0.0005304,70215.0,70206.0,0.28487473]
[1771136034270,0.09670316,70215.0,70204.0,0.0912]
[1771136034449,0.07121521,70210.0,70204.0,0.16242075]
[1771136034651,0.09617711,70210.0,70204.0,0.0912]
[1771136034856,0.07121991,70206.0,70200.0,0.00012]
[1771136035066,0.10286341,70213.0,70206.0,0.08107906]
[1771136035067,0.0249619,70213.0,70206.0,0.08107906]
[1771136035263,0.0249619,70208.0,70206.0,0.08107906]
[1771136035892,0.09617901,70208.0,70206.0,0.08107906]
[1771136037702,0.09617901,70208.0,70207.0,0.34096]
[1771136038693,0.0249619,70208.0,70207.0,0.34096]
[1771136038892,0.07121384,70213.0,70207.0,0.34096]
[1771136039178,0.09617607,70211.0,70207.0,0.34096]
[1771136039738,0.09617606,70211.0,70207.0,0.34096]
[1771136041547,0.0005304,70215.0,70210.0,0.07121428]
[1771136041818,0.07174051,70215.0,70207.0,0.51583768]
[1771136042035,0.07174051,70215.0,70209.0,0.07121592]
[1771136042188,0.0005304,70215.0,70208.0,0.10366034]
[1771136042554,0.0005304,70215.0,70211.0,0.10366034]
[1771136043396,0.0005304,70215.0,70212.0,0.10366034]
[1771136044458,0.0001304,70222.0,70209.0,0.10366034]
[1771136044641,0.0001304,70222.0,70213.0,0.10366034]
[1771136044642,0.07120742,70218.0,70213.0,0.10366034]
[1771136044993,0.07120597,70219.0,70213.0,0.17487195]
[1771136045191,0.07120505,70220.0,70214.0,0.0712107]
[1771136045392,0.07120587,70219.0,70213.0,0.10366034]
[1771136045593,0.07120681,70218.0,70213.0,0.10366034]
[1771136045786,0.07125619,70218.0,70213.0,0.10366034]
[1771136045988,4.938e-05,70218.0,70213.0,0.17487172]
[1771136046188,4.938e-05,70218.0,70214.0,0.10366034]
[1771136046874,0.07298991,70223.0,70211.0,0.07121391]
[1771136047058,0.07298991,70223.0,70208.0,0.23875623]
[1771136047059,0.07298991,70223.0,70217.0,0.17486801]
[1771136047261,0.07298991,70223.0,70218.0,0.44462034]
[1771136047464,9.04e-05,70227.0,70220.0,0.10366034]
[1771136047637,0.07120135,70224.0,70220.0,0.10366034]
[1771136048214,0.00012,70220.0,70219.0,0.0745745]
[1771136051435,0.00012,70220.0,70219.0,0.14578029]
[1771136052190,0.00012,70220.0,70219.0,0.0745745]
[1771136063653,0.0004,70230.0,70219.0,0.14577928]
[1771136063786,0.0004,70230.0,70228.0,0.07119651]
[1771136063988,0.0004,70240.0,70235.0,0.07118957]
[1771136064192,0.0004,70240.0,70234.0,0.07119044]
[1771136064193,0.0715848,70240.0,70236.0,0.09116]
[1771136064406,0.0715848,70240.0,70237.0,0.34096]
[1771136065032,0.07158509,70240.0,70237.0,0.34096]
[1771136065243,0.07118585,70239.0,70237.0,0.34096]
[1771136065599,0.0004,70240.0,70237.0,0.34096]
[1771136065991,0.07158462,70240.0,70237.0,0.34096]
[1771136067049,0.0004,70241.0,70237.0,0.34096]
[1771136067190,0.07117947,70245.0,70240.0,0.10235157]
[1771136067385,0.07117922,70247.0,70240.0,0.00235157]
[1771136067587,0.0715788,70246.0,70240.0,0.07353586]
[1771136067791,0.0004,70246.0,70240.0,0.00235157]
[1771136067962,0.0004,70246.0,70241.0,0.0711834]
[1771136068159,0.0004,70246.0,70240.0,0.07353422]
[1771136068380,0.00049267,70246.0,70242.0,0.07118247]
[1771136068581,0.00049267,70246.0,70243.0,0.10235157]
[1771136068867,0.0004,70248.0,70243.0,0.1249814]
[1771136069084,0.0004,70248.0,70244.0,0.07117979]
[1771136069294,0.0004,70248.0,70245.0,0.34096]
[1771136070768,0.0715772,70248.0,70245.0,0.34096]
[1771136071245,0.0004,70248.0,70245.0,0.34096]
[1771136073189,0.07117813,70247.0,70245.0,0.34096]
[1771136073396,0.07157642,70248.0,70245.0,0.34096]
[1771136073599,0.0004,70248.0,70245.0,0.34096]
[1771136074228,0.000153,70253.0,70247.0,0.07117741]
[1771136074552,0.000153,70253.0,70248.0,0.10235157]
[1771136075052,0.07132441,70253.0,70248.0,0.10235157]
[1771136075501,0.07132441,70253.0,70247.0,0.07117741]
[1771136076088,0.0004,70248.0,70245.0,0.34096]
[1771136076240,0.0004,70248.0,70245.0,0.32687762]
[1771136078238,0.00028,70248.0,70245.0,0.32687762]
[1771136079759,0.07117996,70245.0,70240.0,0.00012]
[1771136080121,0.00028,70248.0,70241.0,0.34096]
[1771136080122,0.07117881,70246.0,70241.0,0.34096]
[1771136080656,0.07117984,70245.0,70241.0,0.34096]
[1771136081257,0.07117868,70246.0,70241.0,0.34096]
[1771136082239,0.07117751,70247.0,70241.0,0.51324386]
[1771136083592,0.07117751,70247.0,70242.0,0.00132293]
[1771136084520,0.07117751,70247.0,70242.0,0.00917182]
[1771136084800,8.5e-05,70251.0,70250.0,0.07117437]
[1771136085006,8.5e-05,70251.0,70250.0,0.34096]
[1771136085223,8.5e-05,70254.0,70250.0,0.41213375]
[1771136085398,0.07117242,70252.0,70250.0,0.34096]
[1771136087430,0.07117242,70252.0,70251.0,0.09112]
[1771136088643,0.07100732,70252.0,70251.0,0.09112]
[1771136089342,0.0708422,70252.0,70251.0,0.09112]
[1771136090399,0.0708422,70252.0,70251.0,0.01216265]
[1771136090889,0.0708422,70252.0,70251.0,0.34096]
[1771136099925,0.0708422,70252.0,70251.0,0.14580887]
[1771136100125,0.07117336,70251.0,70250.0,0.09112]
[1771136100998,0.0649779,70251.0,70250.0,0.43208]
[1771136101240,0.000553,70253.0,70237.0,1e-08]
[1771136101436,0.07118856,70236.0,70235.0,0.12567554]
[1771136101635,0.02465176,70236.0,70235.0,0.12567554]
[1771136101913,0.02465176,70236.0,70235.0,0.12552546]
[1771136102148,0.07131864,70236.0,70235.0,0.12537539]
[1771136102354,0.07119025,70235.0,70230.0,0.34128]
[1771136102572,0.02452168,70233.0,70230.0,0.34128]
[1771136102744,0.02452168,70235.0,70224.0,0.43208]
[1771136103049,0.09571935,70228.0,70223.0,0.000153]
[1771136103228,0.09571936,70227.0,70223.0,0.000153]
[1771136103426,0.03929751,70226.0,70222.0,0.1842515]
[1771136103878,0.03929751,70226.0,70222.0,0.1841078]
[1771136105599,7e-05,70228.0,70223.0,0.10438432]
[1771136105794,7e-05,70228.0,70223.0,0.17558531]
[1771136106022,7e-05,70228.0,70224.0,0.10438432]
[1771136106361,7e-05,70228.0,70223.0,0.10438432]
[1771136106587,7e-05,70228.0,70225.0,0.17558386]
[1771136107001,7e-05,70228.0,70226.0,0.07119861]
[1771136107206,0.03941751,70240.0,70232.0,0.10438432]
[1771136107359,0.07118701,70238.0,70232.0,0.10438432]
[1771136107568,0.23853155,70250.0,70230.0,0.07119276]
[1771136107569,0.07118289,70242.0,70236.0,0.10435831]
[1771136108713,0.07118395,70241.0,70236.0,0.10435831]
[1771136108916,0.07118147,70243.0,70236.0,0.10435831]
[1771136109127,0.07136041,70244.0,70236.0,0.10435831]
[1771136109128,0.07118278,70242.0,70236.0,0.10435831]
[1771136110116,0.07118163,70243.0,70236.0,0.10435831]
[1771136110319,0.0001792,70244.0,70239.0,0.10435831]
[1771136111481,0.0001792,70244.0,70236.0,0.07118785]
[1771136111690,0.07118224,70243.0,70237.0,0.10019416]
[1771136111894,0.0001792,70244.0,70237.0,0.17138158]
[1771136112140,0.07135971,70244.0,70238.0,0.10019416]
[1771136113633,0.0001792,70244.0,70238.0,0.17138057]
[1771136113837,0.07135995,70244.0,70238.0,0.10019416]
[1771136117639,0.02460668,70249.0,70236.0,0.0002]
[1771136117836,0.07117804,70247.0,70240.0,0.17002477]
[1771136118379,0.07117804,70247.0,70241.0,0.09884066]
[1771136118954,0.07117846,70246.0,70241.0,0.09884066]
[1771136121238,0.07117785,70247.0,70241.0,0.09884066]
[1771136121625,0.0004,70244.0,70241.0,0.09884066]
[1771136122527,0.0004,70244.0,70240.0,0.04695697]
[1771136122734,0.0004,70244.0,70241.0,0.09884066]
[1771136123364,0.0004,70244.0,70239.0,0.09884066]
[1771136123717,0.07158069,70244.0,70239.0,0.09884066]
[1771136125070,0.07158069,70244.0,70237.0,0.07118687]
[1771136125488,0.07158069,70244.0,70238.0,0.07118594]
[1771136125695,0.07158069,70244.0,70238.0,0.07367944]
[1771136125901,0.07158069,70244.0,70238.0,0.07118594]
[1771136126645,0.07158069,70244.0,70238.0,0.07103591]
[1771136127230,0.07166569,70244.0,70238.0,0.07103591]
[1771136127665,0.07118326,70242.0,70236.0,0.0002]
[1771136127879,0.07118326,70242.0,70236.0,0.07138798]
[1771136129052,0.07118152,70243.0,70237.0,0.07118712]
[1771136129253,0.07118152,70243.0,70237.0,0.0733273]
[1771136129457,0.07118152,70243.0,70237.0,0.07475105]
[1771136130193,0.07118152,70243.0,70237.0,0.07118712]
[1771136131180,0.07118152,70243.0,70237.0,0.07103709]
[1771136131769,0.07126652,70243.0,70237.0,0.07103709]
[1771136132355,0.07126652,70243.0,70238.0,0.00028553]
[1771136133100,8.5e-05,70243.0,70236.0,0.0002]
[1771136133304,0.07118248,70242.0,70236.0,0.0002]
[1771136133500,0.02459093,70241.0,70236.0,0.07138824]
[1771136133750,0.02459093,70241.0,70237.0,0.07118747]
[1771136135681,8.5e-05,70243.0,70237.0,0.07118747]
[1771136135859,8.5e-05,70243.0,70238.0,0.00113713]
[1771136136077,0.09585762,70243.0,70238.0,0.00113713]
[1771136136281,0.02467593,70243.0,70238.0,0.07232356]
[1771136136655,0.09585748,70243.0,70238.0,0.00113713]
[1771136136906,0.09585748,70243.0,70237.0,0.07118716]
[1771136138075,0.09585748,70243.0,70238.0,0.00255761]
[1771136138266,8.5e-05,70243.0,70238.0,0.17246475]
[1771136138465,0.07166579,70244.0,70238.0,0.17246475]
[1771136139066,0.07166579,70244.0,70238.0,0.17266475]
[1771136139271,0.07166579,70244.0,70238.0,0.10147827]
[1771136140500,0.07118197,70243.0,70238.0,0.10147827]
[1771136141483,0.07118316,70242.0,70238.0,0.00263761]
[1771136142696,0.07118316,70242.0,70238.0,0.0002]
[1771136145867,0.07118352,70241.0,70238.0,0.0002]
[1771136146073,0.07119116,70234.0,70230.0,0.0002]
[1771136146231,0.02350105,70231.0,70230.0,1e-08]
[1771136146837,0.09469468,70231.0,70230.0,1e-08]
[1771136147037,0.07119733,70228.0,70224.0,0.00027]
[1771136147239,0.02350105,70227.0,70224.0,0.00040008]
[1771136147492,0.02350105,70227.0,70224.0,0.07153052]
[1771136147893,0.02350105,70227.0,70224.0,0.00033008]
[1771136148072,0.02350105,70227.0,70224.0,0.07153076]
[1771136148484,0.02350105,70227.0,70224.0,0.00033008]
[1771136150640,0.07119878,70226.0,70224.0,0.00033008]
[1771136150839,0.02350105,70225.0,70224.0,0.00033008]
[1771136158503,0.09791685,70229.0,70213.0,0.0002]
[1771136158723,0.02350105,70217.0,70213.0,0.0002]
[1771136159251,0.02350105,70217.0,70213.0,0.07141187]
[1771136159450,0.02350105,70217.0,70213.0,0.0002]
[1771136160127,0.02350105,70217.0,70213.0,0.07141185]
[1771136160679,0.02350105,70217.0,70214.0,0.07121057]
[1771136160794,0.07120331,70222.0,70216.0,0.07140884]
[1771136161405,0.02350105,70223.0,70216.0,0.0002]
[1771136162202,0.07120279,70222.0,70216.0,0.07140814]
[1771136162421,0.07120279,70222.0,70216.0,0.0002]
[1771136163430,0.07120279,70222.0,70216.0,0.07140848]
[1771136163829,0.09470311,70223.0,70216.0,0.07140848]
[1771136164242,0.02350105,70223.0,70217.0,0.07120767]
[1771136164852,0.02350105,70223.0,70216.0,0.0002]
[1771136165054,0.02350105,70223.0,70217.0,0.07120707]
[1771136165397,0.09470295,70223.0,70217.0,0.07120707]
[1771136166453,0.02350105,70223.0,70218.0,0.07120675]
[1771136166893,0.02350105,70223.0,70217.0,0.07120739]
[1771136167086,0.09470323,70223.0,70216.0,0.07184715]
[1771136167502,0.09470323,70223.0,70217.0,0.07120752]
[1771136168399,0.07120276,70222.0,70216.0,0.07184715]
[1771136169431,0.09470295,70223.0,70217.0,0.07120752]
[1771136170792,0.09470295,70223.0,70217.0,0.07140752]
[1771136171864,0.0712019,70223.0,70217.0,0.07140752]
[1771136172074,0.0004,70228.0,70227.0,0.17637212]
[1771136172075,1e-08,70228.0,70227.0,0.17637212]
[1771136172269,0.00012,70230.0,70227.0,0.17653662]
[1771136172743,0.00012,70230.0,70228.0,0.07119653]
[1771136172971,0.00012,70230.0,70227.0,0.1765347]
[1771136174430,0.00012,70230.0,70227.0,0.10533894]
[1771136177230,0.0683131,70232.0,70227.0,0.10533894]
[1771136177832,0.0004,70236.0,70230.0,0.07119368]
[1771136178162,0.07158869,70236.0,70230.0,0.07119407]
[1771136178643,0.07158869,70236.0,70230.0,0.07135857]
[1771136178820,0.0004,70236.0,70232.0,0.16992754]
[1771136179026,0.0004,70236.0,70232.0,0.09873511]
[1771136179424,0.0004,70236.0,70232.0,0.09889961]
[1771136180577,0.07158875,70236.0,70232.0,0.09889961]
[1771136180961,0.07158875,70236.0,70232.0,0.0001645]
[1771136180962,0.07118966,70235.0,70232.0,0.0001645]
[1771136181169,0.09751829,70236.0,70232.0,0.0001645]
[1771136181370,0.07119085,70234.0,70232.0,0.0001645]
[1771136181571,0.02433228,70235.0,70232.0,0.0001645]
[1771136181772,0.09552244,70235.0,70232.0,0.0001645]
[1771136181978,0.07119016,70235.0,70232.0,0.0001645]
[1771136182498,0.09364536,70236.0,70232.0,0.0001645]
[1771136182999,0.07118966,70235.0,70232.0,0.0001645]
[1771136184578,0.09220021,70235.0,70232.0,0.0001645]
[1771136184976,0.07119092,70234.0,70232.0,0.0001645]
[1771136185808,0.07158966,70235.0,70232.0,0.0001645]
[1771136186556,0.07158966,70235.0,70229.0,0.0684601]
[1771136186700,0.07119088,70234.0,70228.0,0.07119483]
[1771136187236,0.07119191,70233.0,70227.0,0.07119686]
[1771136187436,0.07119088,70234.0,70228.0,0.07119635]
[1771136187999,0.07119088,70234.0,70227.0,0.07119686]
[1771136188407,0.07119088,70234.0,70228.0,0.07119664]
[1771136191587,0.07158986,70235.0,70229.0,0.07119562]
[1771136194231,0.07158986,70235.0,70228.0,0.07139594]
[1771136194781,0.07158986,70235.0,70229.0,0.07119565]
[1771136195655,0.0004,70235.0,70230.0,0.07119448]
[1771136195852,0.0004,70235.0,70233.0,0.07119141]
[1771136197157,0.0004,70238.0,70234.0,0.07119059]
[1771136197735,0.0004,70238.0,70234.0,0.1699257]
[1771136197945,0.0004,70238.0,70235.0,0.16992462]
[1771136198151,0.0004,70246.0,70234.0,0.02419364]
[1771136198401,0.07117547,70249.0,70242.0,0.16991689]
[1771136198585,0.07130559,70249.0,70243.0,0.07118095]
[1771136198733,0.07130559,70249.0,70242.0,0.16991725]
[1771136198939,0.07130559,70249.0,70240.0,0.07118372]
[1771136198940,0.0008,70248.0,70240.0,0.07118372]
[1771136199160,0.02513228,70248.0,70240.0,0.07118372]
[1771136200092,0.07117753,70247.0,70241.0,0.07118279]
[1771136200966,0.0008,70246.0,70241.0,0.07118279]
[1771136201195,0.0008,70246.0,70240.0,0.07118372]
[1771136201391,0.07117755,70247.0,70241.0,0.07118326]
[1771136201591,0.07197755,70247.0,70241.0,0.07118326]
[1771136201795,0.07237755,70247.0,70241.0,0.07118326]
[1771136202019,0.0012,70247.0,70242.0,0.07118229]
[1771136202389,0.0004,70255.0,70244.0,0.02350619]
[1771136202708,0.09413408,70268.0,70260.0,0.07116412]
[1771136202939,0.0711568,70268.0,70261.0,0.07116279]
[1771136203088,0.0711559,70269.0,70262.0,0.08840581]
[1771136203310,0.1694911,70299.0,70261.0,0.07116279]
[1771136203311,0.03629935,70277.0,70261.0,0.02392073]
[1771136203507,0.000279,70280.0,70269.0,0.02392073]
[1771136203707,0.000279,70280.0,70275.0,0.07114844]
[1771136203907,0.000279,70280.0,70276.0,0.08840581]
[1771136204135,0.00071292,70280.0,70276.0,0.08840581]
[1771136204553,0.07113913,70285.0,70278.0,0.1595513]
[1771136204744,0.00013007,70285.0,70278.0,0.08840581]
[1771136204976,0.07114058,70284.0,70279.0,0.08840581]
[1771136205198,0.07114424,70280.0,70273.0,0.07115032]
[1771136205408,0.07114095,70283.0,70276.0,0.07114736]